Cogmind - Beta 17 @@@ ROGUE MODE // 2026.07.08 @ 19:40:39 Player: star Result: Destroyed by B-75 Beast with Magnetic Acceleration Cannon Performance ------------- Evolutions (2) 1000 Regions Visited (4) 800 Robots Destroyed (86) 430 Value Destroyed (2838) 2838 Prototype IDs (3) 60 Alien Tech Used (0) 0 Bonus (436) 436 TOTAL SCORE: 5564 Bonus ------- High Alert Combat Kills 236 Entered Garrisons 200 Cogmind --------- Core Integrity 0/550 Matter 37/300 Energy 100/100 System Corruption 5% Temperature Cool (12) Movement Flying (40) Location -8/Garrison Parts ------- > --- POWER (1) -------- (None) > --- PROPULSION (3) --- Flight Unit > --- UTILITY (3) ------ (None) > --- WEAPON (4) ------- Minigun > --- INVENTORY (5) ---- Aluminum Leg Improved Cooling System Missile Launcher Improved Datajack Plasma Cutter Peak State ------------ > --- POWER ------------ Improved Ion Engine > --- PROPULSION ------- Improved Medium Treads Improved Medium Treads Improved Medium Treads > --- UTILITY ---------- Improved Cooling System Medium Storage Unit System Shield > --- WEAPON ----------- Improved Medium Laser Pulse Rifle Minigun Minigun > --- INVENTORY -------- Aluminum Leg Aluminum Leg Aluminum Leg Improved Cooling System Compact Battery Missile Launcher Missile Launcher Improved Datajack Plasma Cutter [Rating: 39] Favorites ----------- Power Heavy Ion Engine Engine Heavy Ion Engine Power Core Light Nuclear Core Propulsion Aluminum Leg Treads Improved Medium Treads Leg Aluminum Leg Wheel Compact Wheel Flight Unit Flight Unit Utility Medium Storage Unit Device Improved Heat Sink Storage Medium Storage Unit Hackware System Shield Weapon Heavy EM Pulse Gun Energy Gun Heavy EM Pulse Gun Ballistic Gun Minigun Launcher Missile Launcher Build | -11 -10 -9 -8 -8 ------- Run | Yrd Mat Mat Mat Gar Slots Evolved 4 | . . 2 2 . Power . | . . . . . Propulsion 1 | . . . 1 . Utility 1 | . . . 1 . Weapon 2 | . . 2 . . Parts Attached 51 | 7 3 10 16 15 Power 5 | 1 . 3 1 . Engine 4 | 1 . 3 . . Core 1 | . . . 1 . Reactor . | . . . . . Propulsion 18 | 3 . . 7 8 Treads 3 | . . . . 3 Leg 11 | 2 . . 7 2 Wheel 1 | 1 . . . . Hover . | . . . . . Flight 3 | . . . . 3 Utility 7 | 1 1 1 3 1 Device 4 | . . 1 2 1 Storage 2 | 1 1 . . . Processor . | . . . . . Hackware 1 | . . . 1 . Protection . | . . . . . Artifact . | . . . . . Weapon 21 | 2 2 6 5 6 Energy Gun 15 | 2 2 6 4 1 Energy Cannon . | . . . . . Ballistic Gun 4 | . . . . 4 Ballistic Cannon . | . . . . . Launcher 2 | . . . 1 1 Special Weapon . | . . . . . Impact Weapon . | . . . . . Slashing Weapon . | . . . . . Piercing Weapon . | . . . . . Special Melee Weapon . | . . . . . Unidentified Prototypes 3 | . . 3 . . Corrupted Parts 3 | . . 2 1 . System Corruption 11 | . . 10 1 . Parts Lost 21 | . . 2 8 11 Power 1 | . . . . 1 Propulsion 7 | . . . 2 5 Utility 1 | . . . 1 . Weapon 12 | . . 2 5 5 Highest Loss Streak 4 | . . 1 3 4 To Critical Strikes . | . . . . . Average Backups 9 | . 6 9 9 9 Power . | . 1 1 1 . Propulsion 1 | . . . 1 2 Utility 2 | . . 2 2 1 Weapon 2 | . 5 3 2 1 Tool/Special . | . . . . . Unused Backups 9 | . . 4 2 3 Power . | . . . . . Propulsion . | . . . . . Utility 4 | . . 1 2 1 Weapon 3 | . . 3 . . Tool/Special 2 | . . . . 2 Average Slot Usage (%) 90 | . 85 94 89 88 Engine 7 | . 14 11 7 . Core 2 | . . . 1 5 Leg 21 | . 28 22 23 18 Device 8 | . . 6 13 8 Storage 9 | . 14 11 9 8 Hackware 3 | . . . 1 8 Energy Gun 33 | . 28 43 32 24 Ballistic Gun 2 | . . . . 8 Peak Build Rating 39 | 6 10 22 32 39 Average Rating 22 | 4 8 17 25 29 On Entrance 13 | . 6 9 22 32 Avg Prop Armor Cover (%) 9 | 9 . . . . Naked Turns 9 | . . . . 9 Heaviest Build 35 | 12 24 31 35 35 Greatest Support 90 | 20 20 20 43 90 Greatest Overweight (x) 2 | . 1 1 1 2 Average Overweight (x) . | . . 1 . . Largest Inventory Capacity 10 | 8 10 10 10 10 Average Capacity 9 | 7 8 10 10 9 Most Carried 10 | 2 9 10 10 10 Average Carried 9 | . 6 9 9 9 Final Capacity 10 | 8 10 10 10 5 Final Carried 10 | 2 9 10 10 5 Class Distribution -------------------- 48% | Gunner 40% | Scavenger-Gunner 10% | Mutant Dominant Class ---------------- Mutant | -10/Materials Gunner | -9/Materials Gunner | -8/Materials Scavenger-Gunner | -8/Garrison Resources | -11 -10 -9 -8 -8 ----------- Run | Yrd Mat Mat Mat Gar Matter Collected 1121 | 161 129 218 216 397 Remotely . | . . . . . Salvage Created 3449 | . 148 1042 1456 803 Parts 181 | . 5 62 78 36 Haulers Intercepted 8 | . 1 3 4 . Recyclers Shooed . | . . . . . Parts Field Recycled . | . . . . . Retrieved Matter . | . . . . . Parts Self-Destructed . | . . . . . Prevented . | . . . . . Parts Restored . | . . . . . Kills | -11 -10 -9 -8 -8 ------- Run | Yrd Mat Mat Mat Gar Combat Hostiles Destroyed 71 | . 2 19 23 27 Guns 50 | . 1 14 20 15 AOE 19 | . 1 3 3 12 Classes Destroyed 14 | . 2 4 5 3 Worker 2 | . . 2 . . Builder 2 | . . . 2 . Hauler 8 | . 1 3 4 . Recycler 1 | . . . 1 . Operator 2 | . . 1 1 . Swarmer 19 | . . 3 4 12 Grunt 35 | . 2 12 13 8 Brawler 2 | . . . 1 1 Sentry 8 | . . 4 2 2 Specialist 2 | . . . 2 . Hunter 2 | . . . . 2 Programmer 1 | . . . . 1 Heavy 1 | . . . 1 . Behemoth 1 | . . . . 1 Best Kill Streak 8 | . 3 6 7 8 Combat Bots Only 8 | . 2 5 6 8 Max Kills in Single Turn 4 | . 1 3 3 4 Gunslinging 1 | . . 1 . 1 Exploded 4 | . 1 1 2 4 Melee . | . . . . . Uniques/NPCs Destroyed . | . . . . . Combat | -11 -10 -9 -8 -8 -------- Run | Yrd Mat Mat Mat Gar Hostile Shots Fired 286 | . 8 54 67 157 Missed 83 | . 1 18 18 46 Hits 203 | . 7 36 49 111 Projectile 203 | . 7 36 49 111 Critical Strikes 5 | . . . 2 3 Damage Taken 3330 | . 85 490 824 1931 Core 653 | . 10 74 110 459 Absorbed by Shields 133 | . . . . 133 Regen/Repaired (Parts) 34 | . . 34 . . Core Remaining (%) 92 | 100 96 81 . . Volleys Fired 161 | 1 6 32 54 68 Largest 4 | 2 2 4 4 4 Hottest 240 | 90 90 191 240 240 Shots Fired 496 | 2 12 114 170 198 Gun 483 | 2 12 114 168 187 Cannon . | . . . . . Launcher 13 | . . . 2 11 Special . | . . . . . Kinetic 66 | . . . . 66 Thermal 217 | 1 . 4 107 105 Explosive 13 | . . . 2 11 Electromagnetic 200 | 1 12 110 61 16 Robot Hit Streak 30 | 1 9 9 17 30 Robot Miss Streak 3 | 1 2 3 3 3 Penetration Max . | . . . . . Secondary Targets 4 | . 1 1 . 2 Max Gunslinging Chain 1 | . 1 1 . 1 Shots Hit Robots 300 | 1 10 65 106 118 Core Hits 147 | . 4 34 53 56 Critical Kills . | . . . . . Critical Parts Destroyed . | . . . . . Critical Strikes 13 | . . 2 8 3 Burn 11 | . . . 8 3 Corrupt 2 | . . 2 . . Melee Attacks . | . . . . . Impact . | . . . . . Slashing . | . . . . . Piercing . | . . . . . Sneak Attacks . | . . . . . Combat Hostiles . | . . . . . Follow-up Attacks . | . . . . . Damage Inflicted 6873 | 13 281 1337 2177 3065 Guns 4894 | 13 183 1090 1735 1873 Cannons . | . . . . . Explosions 1979 | . 98 247 442 1192 Melee . | . . . . . Ramming . | . . . . . Kinetic 793 | . . . . 793 Thermal 2581 | 13 98 263 1254 953 Explosive 1487 | . . . 295 1192 Electromagnetic 2012 | . 183 1074 628 127 Impact . | . . . . . Slashing . | . . . . . Piercing . | . . . . . Highest Corruption 10 | . . 10 1 5 Average Corruption 5 | . . 8 1 4 Corruption Purged . | . . . . . Corruption Blocked . | . . . . . Effects 54 | . . 29 1 24 Message Errors 17 | . . 9 . 8 Matter Fused 15 | . . 8 . 7 Heat Flow Errors 3 | . . 2 . 1 Energy Discharges 2 | . . 1 . 1 Parts Rejected 1 | . . . . 1 Data Loss (minor) 8 | . . 3 1 4 Data Loss (major) 2 | . . 2 . . Alerts 2 | . . . . 2 Misdirections 2 | . . 2 . . Weapon Failures 2 | . . 2 . . Overload Shots . | . . . . . Overflow Damage 55 | . . . 2 53 Projectiles . | . . . . . Explosions 55 | . . . 2 53 Melee . | . . . . . Knockbacks . | . . . . . Impact . | . . . . . Kinetic . | . . . . . Secondary . | . . . . . Self-Inflicted Damage 98 | . 8 35 . 55 Shots 3 | . 1 1 . 1 Rammed . | . . . . . Targets Rammed . | . . . . . Kicked . | . . . . . Crushed . | . . . . . Highest Temperature 363 | 30 168 338 213 363 Average Temperature 89 | 20 72 109 78 81 Received Heat Transfer 1121 | . 42 168 252 659 Effects 7 | . . 2 . 5 Interference 7 | . . 2 . 5 Siege Activations . | . . . . . Martial Activations . | . . . . . Shielding Activations . | . . . . . Robots Disrupted . | . . . . . Combat Hostiles . | . . . . . Robots Corrupted 3 | . . 3 . . Combat Hostiles 2 | . . 2 . . Parts Fried 9 | . 1 7 1 . Impact Corruptions . | . . . . . Robots Melted . | . . . . . Combat Hostiles . | . . . . . Parts Melted 13 | . . . 8 5 Heat Transferred 5865 | 37 150 187 3197 2294 Parts Sabotaged . | . . . . . Parts Stolen . | . . . . . Parts Stripped . | . . . . . Power Chain Reactions 9 | . 2 6 1 . Alert | -11 -10 -9 -8 -8 ------- Run | Yrd Mat Mat Mat Gar Maximum Alert Level 3 | . . 1 1 3 Low Security (%) 48 | 100 100 92 33 . Level 1 25 | . . 7 66 21 Level 2 4 | . . . . 14 Level 3 21 | . . . . 64 Level 4 . | . . . . . Level 5 . | . . . . . High Security . | . . . . . Max Security . | . . . . . Peak Influence 833 | . 40 215 398 833 Initial 211 | . . . 77 211 Average 313 | . 10 107 244 660 Influence Increases 1924 | . 50 536 646 692 Destroy 0b10 Robot/C 1420 | . 40 380 460 540 Destroy 0b10 Robot/NC 75 | . 5 30 40 . Destroy Leader 216 | . 2 86 108 20 Successful Hack 3 | . . 3 . . Disable Machine 30 | . . 15 15 . Anti-Garrison Action 50 | . . . . 50 Destroy Structure 130 | . 3 22 23 82 Influence Decreases 1131 | . 50 352 505 224 Entered New Map 221 | . . . 107 114 Time Decay 700 | . 50 332 318 . Lost Part 210 | . . 20 80 110 Squads Dispatched 6 | . . 2 4 . Investigation 1 | . . . 1 . Extermination . | . . . . . Reinforcement 5 | . . 2 3 . Assault . | . . . . . Garrison . | . . . . . Intercept . | . . . . . Searches Triggered . | . . . . . Construction Impeded 1 | . . . 1 . Haulers Reinforced . | . . . . . Active Scanning Responses . | . . . . . Cargo Convoy Interrupts . | . . . . . Stealth | -11 -10 -9 -8 -8 --------- Run | Yrd Mat Mat Mat Gar Distress Signals 10 | . 1 3 6 . Communications Jammed . | . . . . . Distress Signals . | . . . . . Times Spotted 94 | . 5 31 35 23 Peak Tracking Total 8 | . 3 8 5 4 Tactical Retreats . | . . . . . Traps | -11 -10 -9 -8 -8 ------- Run | Yrd Mat Mat Mat Gar Traps Triggered 4 | . . . . 4 Indirectly . | . . . . . Trap Hack Attempts . | . . . . . Triggered . | . . . . . Disarmed . | . . . . . Reprogrammed . | . . . . . Reused . | . . . . . Traps Extracted . | . . . . . Installed . | . . . . . Triggered . | . . . . . Machines | -11 -10 -9 -8 -8 ---------- Run | Yrd Mat Mat Mat Gar Machines Disabled 3 | . . 1 1 1 Max in Single Turn 1 | . . 1 1 1 Garrison Relay 1 | . . . . 1 Machines Repaired . | . . . . . Machines Dismantled . | . . . . . Machines Sabotaged . | . . . . . Overloaded Fab Kills . | . . . . . Hacking | -11 -10 -9 -8 -8 --------- Run | Yrd Mat Mat Mat Gar Machines Accessed 5 | . . 1 4 . Terminals 2 | . . . 2 . Fabricators . | . . . . . Repair Stations 1 | . . 1 . . Recycling Units . | . . . . . Scanalyzers 1 | . . . 1 . Garrison Access 1 | . . . 1 . Total Hacks 18 | . . 4 14 . Successful 9 | . . 2 7 . Failed 9 | . . 2 7 . Catastrophic 2 | . . . 2 . Database Lockouts . | . . . . . Manual 7 | . . . 7 . Terminals 8 | . . . 8 . Fabricators . | . . . . . Repair Stations 4 | . . 4 . . Recycling Units . | . . . . . Scanalyzers 5 | . . . 5 . Garrison Access 1 | . . . 1 . Terminal Hacks 1 | . . . 1 . Record 1 | . . . 1 . Fabricator Hacks . | . . . . . Repair Station Hacks 2 | . . 2 . . Scan Component 1 | . . 1 . . Repair 1 | . . 1 . . Recycling Unit Hacks . | . . . . . Scanalyzer 4 | . . . 4 . Insert Component 1 | . . . 1 . Analyze 1 | . . . 1 . Retrieve Study 2 | . . . 2 . Garrison Access Hacks 1 | . . . 1 . Unlock Access 1 | . . . 1 . Unauthorized Hacks 1 | . . . 1 . Terminals 1 | . . . 1 . Operators 1 | . . . 1 . Fabricators . | . . . . . Repair Stations . | . . . . . Recycling Units . | . . . . . Scanalyzers . | . . . . . Garrison Access . | . . . . . Data Cores Recovered 1 | . . . 1 . Used . | . . . . . Hacking Detections 5 | . . 1 4 . Full Trace Events 1 | . . . 1 . Feedback Events . | . . . . . Feedback Blocked . | . . . . . Robot Schematics Acquired . | . . . . . Robots Built . | . . . . . Authchips . | . . . . . Time . | . . . . . Total Robot Build Rating . | . . . . . Part Schematics Acquired 1 | . . . 1 . Parts Built . | . . . . . Authchips . | . . . . . Time . | . . . . . Total Part Build Rating . | . . . . . Part Studies Acquired 2 | . . . 2 . Parts Repaired 1 | . . 1 . . Time 32 | . . 32 . . Parts Recycled . | . . . . . Recycled Matter . | . . . . . Retrieved Matter . | . . . . . Retrieved Components . | . . . . . Parts Scanalyzed 1 | . . . 1 . Part Schematics Acquired 1 | . . . 1 . Parts Damaged . | . . . . . Bothacking | -11 -10 -9 -8 -8 ------------ Run | Yrd Mat Mat Mat Gar Used RIF Installer . | . . . . . Robots Hacked . | . . . . . Non-combat . | . . . . . Combat . | . . . . . Robot Hacks Applied . | . . . . . Relay Couplers Released 3 | . . . . 3 Machine Destruction 3 | . . . . 3 Fabnet Peak Effective % . | . . . . . Robots Rewired . | . . . . . Allies Hacked . | . . . . . Hacks Repelled . | . . . . . Allies | -11 -10 -9 -8 -8 -------- Run | Yrd Mat Mat Mat Gar Total Allies . | . . . . . Largest Group . | . . . . . Highest-Rated Group . | . . . . . Highest-Rated Ally . | . . . . . Total Orders . | . . . . . Ally Attacks . | . . . . . Total Damage . | . . . . . Kills . | . . . . . Allies Corrupted . | . . . . . Allies Melted . | . . . . . Intel | -11 -10 -9 -8 -8 ------- Run | Yrd Mat Mat Mat Gar Active Infowar (turns) . | . . . . . Robot Analysis Total . | . . . . . Derelict Logs Recovered . | . . . . . Drone Launches . | . . . . . Drone Recoveries . | . . . . . Exploration | -11 -10 -9 -8 -8 ------------- Run | Yrd Mat Mat Mat Gar Turns Passed 2959 | 67 194 1008 717 973 Spaces Moved 1362 | 46 123 413 272 508 Core 21 | 3 . . . 18 Treads 43 | . . . . 43 Legs 1261 | 40 123 413 272 413 Wheels 3 | 3 . . . . Hover . | . . . . . Flight 34 | . . . . 34 Fastest Speed 34 | 50 120 190 120 34 Average Speed 153 | 114 121 190 151 135 Slowest Speed 260 | 120 190 190 190 260 Overloaded Moves . | . . . . . Propulsion Burnouts . | . . . . . Robots Hopped . | . . . . . Potential Cave-ins . | . . . . . Cave-ins Triggered . | . . . . . Exploration Rate (%) 30 | 4 29 53 30 37 Regions Visited 4 Branch Regions . Pre-discovered Areas . | . . . . . Known Exits Taken 1 | . . . 1 . Unknown Exits Taken 3 | 1 1 1 . . Scrap Searched . | . . . . . Spaces Dug . | . . . . . Terrain Destroyed 109 | . 3 21 20 65 Melee . | . . . . . Projectile . | . . . . . AOE 109 | . 3 21 20 65 Terrain Rammed . | . . . . . Walls Destroyed . | . . . . . Machines Disabled . | . . . . . Actions | -11 -10 -9 -8 -8 --------- Run | Yrd Mat Mat Mat Gar Total 1873 | 55 155 563 452 648 Wait 215 | . 15 81 92 27 Move 1359 | 45 122 412 272 508 Hop . | . . . . . Pick Up 27 | 2 7 12 5 1 Fast Attach 22 | 6 1 1 5 9 Attach 12 | . . 4 7 1 Detach 3 | . 1 . 2 . Swap 37 | 1 2 10 10 14 Drop 22 | . 1 11 5 5 Fire 161 | 1 6 32 54 68 Melee . | . . . . . Ram . | . . . . . Kick . | . . . . . Crush . | . . . . . Escape Stasis 15 | . . . . 15 Rewire . | . . . . . Trap . | . . . . . Miscellaneous . | . . . . . Route ------- -11/Scrapyard -10/Materials -9/Materials -8/Materials (discovered 2 exits: [*Fac] / Gar) -8/Garrison History --------- Turn | Location | Event 45 | -11/Scrapyard | Discovered new exit (range 14) 68 | -11/Scrapyard | Entered Materials 232 | -10/Materials | Discovered new exit (range 16) 262 | -10/Materials | Entered another Materials area 262 | -9/Materials | Evolved 2 slots: Weapon x2 551 | -9/Materials | Build established: Gunner 679 | -9/Materials | System corruption reached 10% 1162 | -9/Materials | Repaired Hvy. EM Pulse Gun 1242 | -9/Materials | Discovered new exit (range 16) 1270 | -9/Materials | Entered another Materials area 1270 | -8/Materials | Evolved 2 slots: Propulsion x1, Utility x1 1727 | -8/Materials | Lost 3 parts (1n1u1w) 1822 | -8/Materials | Discovered new exit (range 16) 1987 | -8/Materials | Identified exit to Garrison 1987 | -8/Materials | Entered Garrison 2030 | -8/Garrison | Triggered checkpoint 2077 | -8/Garrison | Build established: Scavenger-Gunner 2135 | -8/Garrison | Garrison Relay disabled 2186 | -8/Garrison | Triggered checkpoint 2234 | -8/Garrison | Destroyed 8 combat bots 2314 | -8/Garrison | Triggered checkpoint 2460 | -8/Garrison | Spotted B-75 Beast 2477 | -8/Garrison | Triggered checkpoint 2583 | -8/Garrison | Core integrity fell below 50% 2595 | -8/Garrison | Destroyed B-75 Beast 2663 | -8/Garrison | Spotted B-75 Beast 2880 | -8/Garrison | Released all parts (7) 2911 | -8/Garrison | Lost 4 parts (1n3w) 2951 | -8/Garrison | Core integrity fell below 20% 2960 | -8/Garrison | Destroyed by B-75 Beast with Magnetic Acceleration Cannon Last Messages --------------- 02899_ Acquired Minigun. 02903_ Acquired Shock Rifle. 02911_ Slug penetrates Wall. 02911_ Shock Rifle destroyed. 02914_ Slug penetrates Wall. 02922_ H-55 Commando destroyed. 02926_ Acquired 55 matter. 02926_ Triggered Stasis Trap. 02926_ A bubble of rippling energy engulfs the area. 02926_ Field strength at 94. 02926_ Field strength at 88. 02927_ Field strength at 82. 02931_ Flight Unit destroyed. 02937_ Penetrated by Slug. 02940_ Flight Unit destroyed. 02942_ H-55 Commando destroyed. 02945_ Field strength at 49. 02946_ Field strength at 43. 02956_ Stasis field depleted. 02960_ Minigun destroyed. Map ----- +----------------------------------------------------+ | ?????????###%+ ????????????????# #????????????? | | ?????????# *=####????????????????# #????????????? | | ?????????# !#???????????????????# #????????????? | | ?????????# #???????????????????# #??####?? #??? | | ?????????### #???????????????????# #?[[ #? # ?? | | ???????????# #??????????????????## ## *[ # ?? | | ???????????# #"#???????????# #### = ? | | ???????????# "#???????????# ^ ? | | ???????????# !"#???????????###### = ? | | ???????????# ! #??????????????# ? | | ???????????#!#"#??????????????### # #?? | | ???????????#####??????????????# "?? | | ??????????????????????????????# "?? | | ??????????????????????????????# "?? | | ??????????????#######?????????# "?? | | ?????????????## #######???### ## ## #?? | | ?????????????# # ## ####### ## ##? ??? | | ??############ ? | | ??# = ! = ? | | ??#!%* % % ? | | ### ### ### = # # ######### ##""""######?? | | + #?# #?## % # # ######???# #????????????? | | #####?######??#[ ### # !!#???#= #??#?????????? | | ??????????????# #?#### [ !!##### ## #?????????? | | ??????????????# ########+##;;;; # #?????????? | | ??????????????+ !%= %%@= = ! [ #?????????? | | ??????????????# ########;##;#### ####?????????? | | ??????????????# #?????!! BB##?# # #??????????? | | ??????????????# #????#!! BB#??## #??????????? | | ??????????????# #????######;;?# ###??????????? | | ??????????????# #??????????#; ## #???????????? | | ??????????????# ############;### ##???????????? | | ??????????????# # #????????????? | | ??????????????# # #????????????? | | ??????????????# ####### ##### ###????????????? | | ??????????????# #?????# #???# #??????????????? | | ??????????????# #?????# #???# #??????????????? | | ??????????????# #?????# #???# #??????????????? | | ??????????????# #?????#=*#???# #??????????????? | | ??????????????# #?????#%=#???# #??????????????? | | ??????????????# #?????#=[#???# #??????????????? | | ??????????????# #????#!//#???#//#??????????????? | | ??????????????# #???# !]!= ? ??????????????? | | ?????????????? #???# ??????????????? | | ??????????????# #???# ?????????????? | | ??????????????# #???# ?????????????? | | ??????????????# #???# #????????????? | | ??????????????# #???# #????????????? | | ??????????????? #???# #????????????? | | ??????????????? #???# #????????????? | +----------------------------------------------------+ Best States ------------- Heat Dissipation 72 Energy Generation 14 Energy Capacity 280 Matter Stores 300 Matter Capacity 300 Sight Range 16 Terrain Scan Density 10 Base Temperature (-) 100 Evasion (%) 63 Recoil Reduction 3 Defensive Hacking 10 Item Schematics ----------------- Imp. EM Shotgun | -8/Materials | Scanalyzed Robot Schematics ------------------ None Fabricated ------------ Nothing Repaired ---------- Hvy. EM Pulse Gun | 32% | -9/Materials Studied --------- Hvy. EM Pulse Gun | -8/Materials | Hacked Missile Launcher | -8/Materials | Hacked Alien Tech Used ----------------- None Achievements -------------- None Challenges ------------ None Game ------ Seed InertialPlatingHammerchucker Manual? 0 Play Time 00:28:37 Cumulative 226.1 hours Start 2026.07.07 @ 22:45:09 End 2026.07.08 @ 19:40:39 Sessions 2 Manual Loads 0 Difficulty Rogue Special Mode None Game No. 374 Rogue 374 Adventurer 0 Explorer 0 Win Type - Total 2 Types 2/0/0/0/0/0/0/0/0/0 Lore% 66 Gallery% 61 Achievement% 49 Wizard Run 0 Options --------- Layout 2 ASCII 0 Keyboard 1 Movement Numpad Keybinds 0 Fullscreen 1 Font 20/SmallcapsGlow Map View 64x51 Zoom Use 0% Tactical HUD 1 Map Filters NONE Filters NONE Steam 1 RUN: 535b71e5-a03f-4038-919a-cc614abd69b5